[Event "Early-Titled-Tuesday-Blitz-September-26-2023"]
[Site "Chess.com"]
[Date "2023.09.26"]
[Round "11"]
[White "wannabe2700"]
[Black "scarabee43"]
[Result "1/2-1/2"]
[WhiteElo "2676"]
[BlackElo "2784"]
[TimeControl "180+1"]
[EndTime "10:07:04 PDT"]
[Termination "Game drawn - insufficient material"]

1. f4 {[%clk 0:03:00.9]} 1... d5 {[%clk 0:02:59.3]} 2. Nf3 {[%clk 0:03:01.4]}
2... Nf6 {[%clk 0:02:59.8]} 3. g3 {[%clk 0:03:02]} 3... g6 {[%clk 0:03:00]} 4.
Bg2 {[%clk 0:03:02.7]} 4... Bg7 {[%clk 0:03:00.4]} 5. O-O {[%clk 0:03:03.6]}
5... O-O {[%clk 0:03:00.8]} 6. d3 {[%clk 0:03:04.5]} 6... c5 {[%clk 0:02:56.4]}
7. c3 {[%clk 0:03:05]} 7... Nc6 {[%clk 0:02:56.9]} 8. Na3 {[%clk 0:03:05.5]}
8... a6 {[%clk 0:02:54.9]} 9. Qe1 {[%clk 0:03:03.4]} 9... b5 {[%clk 0:02:55.3]}
10. e4 {[%clk 0:03:02.2]} 10... dxe4 {[%clk 0:02:55.3]} 11. dxe4 {[%clk
0:03:03.1]} 11... Bb7 {[%clk 0:02:55.5]} 12. e5 {[%clk 0:03:02]} 12... Nd5
{[%clk 0:02:51.6]} 13. e6 {[%clk 0:02:59]} 13... Qd6 {[%clk 0:02:46]} 14. exf7+
{[%clk 0:02:58.6]} 14... Rxf7 {[%clk 0:02:45.9]} 15. Ng5 {[%clk 0:02:58.4]}
15... Rf5 {[%clk 0:02:39.5]} 16. Ne4 {[%clk 0:02:55]} 16... Qc7 {[%clk
0:02:38.2]} 17. Nxc5 {[%clk 0:02:55.1]} 17... Qb6 {[%clk 0:02:38.3]} 18. Qf2
{[%clk 0:02:52.8]} 18... Nxf4 {[%clk 0:02:22.8]} 19. Bxf4 {[%clk 0:02:28.3]}
19... Qxc5 {[%clk 0:02:22.7]} 20. Qxc5 {[%clk 0:02:23.5]} 20... Rxc5 {[%clk
0:02:22.8]} 21. Rad1 {[%clk 0:02:15.8]} 21... Rd8 {[%clk 0:02:06]} 22. Bxc6
{[%clk 0:02:14.5]} 22... Rxd1 {[%clk 0:02:05.5]} 23. Bxb7 {[%clk 0:02:14.4]}
23... Rxf1+ {[%clk 0:02:05.6]} 24. Kxf1 {[%clk 0:02:15.1]} 24... a5 {[%clk
0:02:05.1]} 25. Ba6 {[%clk 0:02:05.5]} 25... b4 {[%clk 0:02:04.9]} 26. cxb4
{[%clk 0:02:05.9]} 26... axb4 {[%clk 0:02:04.9]} 27. Nc4 {[%clk 0:02:05.8]}
27... Rc6 {[%clk 0:01:58.4]} 28. Bb5 {[%clk 0:02:04.9]} 28... Rc5 {[%clk
0:01:58.8]} 29. Ba4 {[%clk 0:01:53.4]} 29... Kf8 {[%clk 0:01:55.5]} 30. Bb3
{[%clk 0:01:52.3]} 30... Rd5 {[%clk 0:01:42.9]} 31. Ke2 {[%clk 0:01:51.6]} 31...
Rh5 {[%clk 0:01:41.8]} 32. h4 {[%clk 0:01:50.6]} 32... Bf6 {[%clk 0:01:41.6]}
33. Bd2 {[%clk 0:01:47.3]} 33... g5 {[%clk 0:01:40.4]} 34. hxg5 {[%clk
0:01:46.9]} 34... Bxg5 {[%clk 0:01:41]} 35. Bxb4 {[%clk 0:01:45.8]} 35... Rh2+
{[%clk 0:01:39.6]} 36. Kf3 {[%clk 0:01:45.3]} 36... Bf6 {[%clk 0:01:37.7]} 37.
Bc3 {[%clk 0:01:34.8]} 37... Bxc3 {[%clk 0:01:37.5]} 38. bxc3 {[%clk 0:01:35.7]}
38... Ke8 {[%clk 0:01:36]} 39. Ne5 {[%clk 0:01:34.7]} 39... Kd8 {[%clk
0:01:35.5]} 40. c4 {[%clk 0:01:30.1]} 40... Rh1 {[%clk 0:01:34.1]} 41. c5 {[%clk
0:01:28.9]} 41... Rc1 {[%clk 0:01:34.4]} 42. Bc4 {[%clk 0:01:26.5]} 42... Rc3+
{[%clk 0:01:33.1]} 43. Kf4 {[%clk 0:01:26.2]} 43... Kc7 {[%clk 0:01:32.2]} 44.
g4 {[%clk 0:01:25.6]} 44... Ra3 {[%clk 0:01:29.2]} 45. Kf5 {[%clk 0:01:25.2]}
45... Ra5 {[%clk 0:01:29.2]} 46. Nd3 {[%clk 0:01:21.8]} 46... Ra4 {[%clk
0:01:25.4]} 47. Bb3 {[%clk 0:01:20.9]} 47... Rd4 {[%clk 0:01:24.8]} 48. Ne5
{[%clk 0:01:20.6]} 48... Rd2 {[%clk 0:01:18.4]} 49. Ke6 {[%clk 0:01:20.6]} 49...
Re2 {[%clk 0:01:17.9]} 50. Bc4 {[%clk 0:01:19.7]} 50... Re4 {[%clk 0:01:16.6]}
51. a4 {[%clk 0:01:19.6]} 51... Re3 {[%clk 0:01:16.4]} 52. a5 {[%clk 0:01:19.5]}
52... Ra3 {[%clk 0:01:14]} 53. a6 {[%clk 0:01:19.3]} 53... Ra5 {[%clk
0:01:14.7]} 54. c6 {[%clk 0:01:14]} 54... h6 {[%clk 0:01:10.8]} 55. Bd5 {[%clk
0:00:43]} 55... Rxa6 {[%clk 0:01:10.1]} 56. Kxe7 {[%clk 0:00:43.2]} 56... Ra5
{[%clk 0:01:07.2]} 57. Ke6 {[%clk 0:00:43.1]} 57... Ra1 {[%clk 0:01:05.5]} 58.
Nf7 {[%clk 0:00:40.7]} 58... Re1+ {[%clk 0:01:00]} 59. Kf5 {[%clk 0:00:40.6]}
59... Rd1 {[%clk 0:00:59.6]} 60. Be4 {[%clk 0:00:38]} 60... Rf1+ {[%clk
0:00:58]} 61. Kg6 {[%clk 0:00:37.3]} 61... Rf4 {[%clk 0:00:58.1]} 62. Bf5 {[%clk
0:00:36.4]} 62... Kxc6 {[%clk 0:00:58.3]} 63. Kxh6 {[%clk 0:00:35.3]} 63... Kd5
{[%clk 0:00:56.5]} 64. Kg5 {[%clk 0:00:32.9]} 64... Ra4 {[%clk 0:00:56.7]} 65.
Kf6 {[%clk 0:00:31.3]} 65... Ra6+ {[%clk 0:00:56.7]} 66. Kg7 {[%clk 0:00:31.6]}
66... Kd4 {[%clk 0:00:55.4]} 67. g5 {[%clk 0:00:30.9]} 67... Ke3 {[%clk
0:00:56]} 68. g6 {[%clk 0:00:28.1]} 68... Kf4 {[%clk 0:00:56.5]} 69. Bd3 {[%clk
0:00:24.4]} 69... Ra3 {[%clk 0:00:56.3]} 70. Bc2 {[%clk 0:00:18.3]} 70... Rc3
{[%clk 0:00:55.8]} 71. Bb1 {[%clk 0:00:18.1]} 71... Rb3 {[%clk 0:00:55.5]} 72.
Ba2 {[%clk 0:00:17.9]} 72... Rb2 {[%clk 0:00:43.7]} 73. Be6 {[%clk 0:00:17.8]}
73... Ke4 {[%clk 0:00:40.2]} 74. Kf6 {[%clk 0:00:16.5]} 74... Rf2+ {[%clk
0:00:40.1]} 75. Ke7 {[%clk 0:00:16.5]} 75... Rg2 {[%clk 0:00:40.4]} 76. Kf8
{[%clk 0:00:16.6]} 76... Rxg6 {[%clk 0:00:40.2]} 77. Ke7 {[%clk 0:00:15.2]}
77... Rg2 {[%clk 0:00:38.5]} 78. Nd6+ {[%clk 0:00:15.2]} 78... Ke5 {[%clk
0:00:38.4]} 79. Nc4+ {[%clk 0:00:15.3]} 79... Kd4 {[%clk 0:00:38.8]} 80. Nd6
{[%clk 0:00:15.3]} 80... Rb2 {[%clk 0:00:38.5]} 81. Nf5+ {[%clk 0:00:15]} 81...
Ke5 {[%clk 0:00:38.2]} 82. Bd7 {[%clk 0:00:12.9]} 82... Rb7 {[%clk 0:00:37.6]}
83. Nd6 {[%clk 0:00:12.8]} 83... Ra7 {[%clk 0:00:37.9]} 84. Nc8 {[%clk
0:00:12.5]} 84... Rb7 {[%clk 0:00:37.6]} 85. Nd6 {[%clk 0:00:12.9]} 85... Ra7
{[%clk 0:00:37.6]} 86. Nc4+ {[%clk 0:00:12]} 86... Kd4 {[%clk 0:00:37.3]} 87.
Nb6 {[%clk 0:00:11.5]} 87... Kc5 {[%clk 0:00:37.2]} 88. Nc8 {[%clk 0:00:11.6]}
88... Rc7 {[%clk 0:00:36.9]} 89. Nd6 {[%clk 0:00:11.9]} 89... Rxd7+ {[%clk
0:00:35.6]} 90. Kxd7 {[%clk 0:00:11.9]} 1/2-1/2

[Event "Early-Titled-Tuesday-Blitz-September-26-2023"]
[Site "Chess.com"]
[Date "2023.09.26"]
[Round "11"]
[White "LoaySameer"]
[Black "PeshkaCh"]
[Result "0-1"]
[WhiteElo "2625"]
[BlackElo "2801"]
[TimeControl "180+1"]
[EndTime "10:07:06 PDT"]
[Termination "PeshkaCh won by resignation"]

1. Nf3 {[%clk 0:03:00.9]} 1... Nf6 {[%clk 0:02:58.5]} 2. g3 {[%clk 0:02:58.8]}
2... g6 {[%clk 0:02:57.9]} 3. Bg2 {[%clk 0:02:59.1]} 3... Bg7 {[%clk 0:02:58.5]}
4. O-O {[%clk 0:02:59.6]} 4... O-O {[%clk 0:02:59.2]} 5. d3 {[%clk 0:02:55.1]}
5... d5 {[%clk 0:02:59.1]} 6. c3 {[%clk 0:02:55.2]} 6... c5 {[%clk 0:02:59.7]}
7. Qa4 {[%clk 0:02:55.3]} 7... Nc6 {[%clk 0:02:59.7]} 8. Qh4 {[%clk 0:02:55.2]}
8... Qd7 {[%clk 0:02:51.3]} 9. e4 {[%clk 0:02:55]} 9... Qg4 {[%clk 0:02:46.3]}
10. Qxg4 {[%clk 0:02:31.6]} 10... Bxg4 {[%clk 0:02:47.2]} 11. h3 {[%clk
0:02:28.9]} 11... Bxf3 {[%clk 0:02:37.6]} 12. Bxf3 {[%clk 0:02:28.5]} 12... Ne5
{[%clk 0:02:38.1]} 13. Bg2 {[%clk 0:02:28.9]} 13... Nxd3 {[%clk 0:02:32.9]} 14.
exd5 {[%clk 0:02:28.3]} 14... Rfd8 {[%clk 0:02:32.3]} 15. c4 {[%clk 0:02:03.6]}
15... Nd7 {[%clk 0:02:31.6]} 16. Nc3 {[%clk 0:02:03.1]} 16... Nb6 {[%clk
0:02:31]} 17. Rd1 {[%clk 0:01:56.8]} 17... Nxc1 {[%clk 0:02:29.3]} 18. Raxc1
{[%clk 0:01:57.7]} 18... Nxc4 {[%clk 0:02:29.5]} 19. Na4 {[%clk 0:01:48.5]}
19... b5 {[%clk 0:01:44.9]} 20. b3 {[%clk 0:01:35.5]} 20... bxa4 {[%clk
0:01:37.3]} 21. Rxc4 {[%clk 0:01:24.1]} 21... axb3 {[%clk 0:01:37.2]} 22. axb3
{[%clk 0:01:24.1]} 22... Rac8 {[%clk 0:01:36.2]} 23. Rdc1 {[%clk 0:01:14.1]}
23... Rb8 {[%clk 0:01:19.6]} 24. Rxc5 {[%clk 0:01:13.1]} 24... Rxb3 {[%clk
0:01:19.2]} 25. Rc8 {[%clk 0:01:01.7]} 25... Rxc8 {[%clk 0:01:16.7]} 26. Rxc8+
{[%clk 0:01:02.6]} 26... Bf8 {[%clk 0:01:17.2]} 27. Ra8 {[%clk 0:01:01.7]} 27...
Rb1+ {[%clk 0:01:11.7]} 28. Bf1 {[%clk 0:01:01.4]} 28... Rd1 {[%clk 0:01:02.9]}
29. Rxa7 {[%clk 0:00:57.4]} 29... Rxd5 {[%clk 0:01:03.4]} 30. Kg2 {[%clk
0:00:57.5]} 30... Rd2 {[%clk 0:01:03.1]} 31. Bc4 {[%clk 0:00:57.5]} 31... e6
{[%clk 0:01:03.2]} 32. Ra2 {[%clk 0:00:55.4]} 32... Rd4 {[%clk 0:01:03.7]} 33.
Rc2 {[%clk 0:00:55.4]} 33... Kg7 {[%clk 0:01:03]} 34. Be2 {[%clk 0:00:55.5]}
34... Bd6 {[%clk 0:01:00.5]} 35. f4 {[%clk 0:00:54.4]} 35... h5 {[%clk
0:00:58.6]} 36. Rc4 {[%clk 0:00:49.9]} 36... Rd2 {[%clk 0:00:54.8]} 37. Kf3
{[%clk 0:00:50.2]} 37... Ra2 {[%clk 0:00:53]} 38. Rd4 {[%clk 0:00:48.1]} 38...
Ra3+ {[%clk 0:00:53.2]} 39. Rd3 {[%clk 0:00:48.5]} 39... Ra6 {[%clk 0:00:51.5]}
40. g4 {[%clk 0:00:46.2]} 40... hxg4+ {[%clk 0:00:48.6]} 41. hxg4 {[%clk
0:00:47.1]} 41... Bc7 {[%clk 0:00:41.8]} 42. Rd7 {[%clk 0:00:47]} 42... Ra3+
{[%clk 0:00:38.1]} 43. Bd3 {[%clk 0:00:45.1]} 43... Rc3 {[%clk 0:00:25.3]} 44.
Ke4 {[%clk 0:00:29.5]} 44... Rc1 {[%clk 0:00:22.7]} 45. f5 {[%clk 0:00:25]}
45... exf5+ {[%clk 0:00:22.4]} 46. gxf5 {[%clk 0:00:25.2]} 46... g5 {[%clk
0:00:23.1]} 47. Kf3 {[%clk 0:00:20.1]} 47... Kf6 {[%clk 0:00:22.3]} 48. Be4
{[%clk 0:00:20.6]} 48... Rc3+ {[%clk 0:00:21.1]} 49. Kg2 {[%clk 0:00:18.1]}
49... Ke5 {[%clk 0:00:16.8]} 50. Ba8 {[%clk 0:00:11.2]} 50... f6 {[%clk
0:00:15.5]} 51. Rd5+ {[%clk 0:00:08.3]} 51... Kf4 {[%clk 0:00:15.7]} 52. Rb5
{[%clk 0:00:07.8]} 52... Rc2+ {[%clk 0:00:13.5]} 53. Kf1 {[%clk 0:00:08.1]}
53... Be5 {[%clk 0:00:13.6]} 54. Rb4+ {[%clk 0:00:05.7]} 54... Kg3 {[%clk
0:00:06.9]} 55. Be4 {[%clk 0:00:05.3]} 55... Rf2+ {[%clk 0:00:06.2]} 56. Kg1
{[%clk 0:00:03.9]} 56... Rf4 {[%clk 0:00:06.1]} 57. Rb3+ {[%clk 0:00:03.8]}
57... Kh4 {[%clk 0:00:05.8]} 58. Bc2 {[%clk 0:00:03.7]} 58... Bd4+ {[%clk
0:00:05.8]} 59. Kg2 {[%clk 0:00:04.1]} 59... Rf2+ {[%clk 0:00:06.2]} 60. Kh1
{[%clk 0:00:03.4]} 60... Rxc2 {[%clk 0:00:05.2]} 61. Rh3+ {[%clk 0:00:03.7]}
61... Kg4 {[%clk 0:00:05.4]} 62. Rg3+ {[%clk 0:00:03.2]} 62... Kf4 {[%clk
0:00:05.4]} 63. Rf3+ {[%clk 0:00:01.3]} 63... Ke4 {[%clk 0:00:04.6]} 64. Rf4+
{[%clk 0:00:02]} 64... Kd3 {[%clk 0:00:05.1]} 65. Rf3+ {[%clk 0:00:02]} 65...
Be3 {[%clk 0:00:05.6]} 66. Rg3 {[%clk 0:00:01.5]} 66... Rc1+ {[%clk 0:00:05.7]}
67. Kg2 {[%clk 0:00:01.6]} 67... Rg1+ {[%clk 0:00:05.7]} 68. Kh3 {[%clk
0:00:01.9]} 68... Rxg3+ {[%clk 0:00:06.3]} 69. Kxg3 {[%clk 0:00:02.8]} 69... Ke4
{[%clk 0:00:07]} 70. Kg2 {[%clk 0:00:02.8]} 70... Kxf5 {[%clk 0:00:07.2]} 71.
Kf3 {[%clk 0:00:03.7]} 71... Bf4 {[%clk 0:00:07.9]} 72. Kg2 {[%clk 0:00:04]}
72... g4 {[%clk 0:00:08.6]} 73. Kf2 {[%clk 0:00:04.9]} 73... Kg5 {[%clk
0:00:09.5]} 0-1

[Event "Early-Titled-Tuesday-Blitz-September-26-2023"]
[Site "Chess.com"]
[Date "2023.09.26"]
[Round "11"]
[White "ATM622"]
[Black "profedechess93"]
[Result "1-0"]
[WhiteElo "2435"]
[BlackElo "2620"]
[TimeControl "180+1"]
[EndTime "10:07:07 PDT"]
[Termination "ATM622 won by resignation"]

1. d4 {[%clk 0:03:00.9]} 1... d5 {[%clk 0:02:59.9]} 2. c4 {[%clk 0:03:00]} 2...
c6 {[%clk 0:02:59.5]} 3. Nf3 {[%clk 0:02:59.3]} 3... Nf6 {[%clk 0:02:59.8]} 4.
Nbd2 {[%clk 0:02:58.8]} 4... e6 {[%clk 0:02:59.6]} 5. g3 {[%clk 0:02:58.3]} 5...
Nbd7 {[%clk 0:02:59.9]} 6. Bg2 {[%clk 0:02:55.1]} 6... Bd6 {[%clk 0:02:59.8]} 7.
O-O {[%clk 0:02:55.7]} 7... O-O {[%clk 0:03:00.4]} 8. Qc2 {[%clk 0:02:56.3]}
8... Re8 {[%clk 0:02:59]} 9. e4 {[%clk 0:02:56.6]} 9... dxe4 {[%clk 0:02:59.4]}
10. Nxe4 {[%clk 0:02:57.5]} 10... Nxe4 {[%clk 0:03:00.1]} 11. Qxe4 {[%clk
0:02:58.4]} 11... c5 {[%clk 0:03:00.8]} 12. Rd1 {[%clk 0:02:57.3]} 12... Qe7
{[%clk 0:02:54.5]} 13. b3 {[%clk 0:02:54.7]} 13... Nf6 {[%clk 0:02:50.2]} 14.
Qc2 {[%clk 0:02:54.1]} 14... cxd4 {[%clk 0:02:49.5]} 15. Nxd4 {[%clk 0:02:54.5]}
15... Bc5 {[%clk 0:02:44.7]} 16. Bb2 {[%clk 0:02:53.7]} 16... a6 {[%clk
0:02:42.9]} 17. a3 {[%clk 0:02:52]} 17... Rd8 {[%clk 0:02:23.7]} 18. b4 {[%clk
0:02:50.1]} 18... Bb6 {[%clk 0:02:23.9]} 19. Nb3 {[%clk 0:02:42.3]} 19... Rxd1+
{[%clk 0:02:17.5]} 20. Rxd1 {[%clk 0:02:41.4]} 20... e5 {[%clk 0:02:18.1]} 21.
c5 {[%clk 0:02:35]} 21... Bc7 {[%clk 0:02:17.7]} 22. a4 {[%clk 0:02:24.6]} 22...
Bg4 {[%clk 0:02:14.7]} 23. Rd2 {[%clk 0:02:12.9]} 23... Rb8 {[%clk 0:02:13.4]}
24. b5 {[%clk 0:02:10.2]} 24... axb5 {[%clk 0:02:06.6]} 25. axb5 {[%clk
0:02:11.1]} 25... e4 {[%clk 0:01:31.1]} 26. Bd4 {[%clk 0:01:56.7]} 26... Be5
{[%clk 0:01:27]} 27. Qc3 {[%clk 0:01:55.3]} 27... Bxd4 {[%clk 0:01:24.9]} 28.
Qxd4 {[%clk 0:01:55.2]} 28... Re8 {[%clk 0:01:22.6]} 29. Qd6 {[%clk 0:01:49.9]}
29... Qxd6 {[%clk 0:00:52.7]} 30. Rxd6 {[%clk 0:01:50.8]} 30... Rc8 {[%clk
0:00:52.8]} 31. c6 {[%clk 0:01:35.5]} 31... bxc6 {[%clk 0:00:50.8]} 32. bxc6
{[%clk 0:01:36.4]} 32... Kf8 {[%clk 0:00:50.6]} 33. Na5 {[%clk 0:00:51.7]} 33...
Ke7 {[%clk 0:00:45.9]} 34. Rd4 {[%clk 0:00:51.3]} 34... Ra8 {[%clk 0:00:43.9]}
35. Ra4 {[%clk 0:00:45.3]} 35... Bd1 {[%clk 0:00:27.4]} 36. Ra1 {[%clk
0:00:43.7]} 36... Bc2 {[%clk 0:00:20.5]} 37. Bh3 {[%clk 0:00:32.7]} 37... Ra7
{[%clk 0:00:14.3]} 38. Rc1 {[%clk 0:00:26.9]} 38... Rxa5 {[%clk 0:00:05.6]} 39.
c7 {[%clk 0:00:26.7]} 39... Ra8 {[%clk 0:00:04.1]} 40. c8=Q {[%clk 0:00:26.9]}
40... Rxc8 {[%clk 0:00:04.7]} 41. Bxc8 {[%clk 0:00:27.4]} 41... Bd3 {[%clk
0:00:05.6]} 42. Kg2 {[%clk 0:00:20.5]} 42... Kd6 {[%clk 0:00:05.9]} 43. h4
{[%clk 0:00:18.3]} 43... Nd5 {[%clk 0:00:06.2]} 44. Bb7 {[%clk 0:00:15.8]} 44...
Ne7 {[%clk 0:00:06.5]} 45. f3 {[%clk 0:00:09.9]} 45... f5 {[%clk 0:00:06.9]} 46.
g4 {[%clk 0:00:08.1]} 46... g6 {[%clk 0:00:07]} 47. Kf2 {[%clk 0:00:05.1]} 47...
h6 {[%clk 0:00:05.8]} 48. Ke3 {[%clk 0:00:05]} 48... Ke5 {[%clk 0:00:06.4]} 49.
f4+ {[%clk 0:00:05.2]} 49... Kd6 {[%clk 0:00:06.1]} 50. g5 {[%clk 0:00:05.6]}
50... hxg5 {[%clk 0:00:06.1]} 51. hxg5 {[%clk 0:00:05.3]} 51... Kd7 {[%clk
0:00:06.7]} 52. Rh1 {[%clk 0:00:04.6]} 52... Kc7 {[%clk 0:00:06.1]} 53. Ba8
{[%clk 0:00:04.4]} 53... Kb8 {[%clk 0:00:06.5]} 54. Rh8+ {[%clk 0:00:04.7]}
54... Kc7 {[%clk 0:00:07]} 55. Kd4 {[%clk 0:00:03.9]} 55... Kd6 {[%clk
0:00:06.9]} 56. Rd8+ {[%clk 0:00:03.5]} 56... Kc7 {[%clk 0:00:07.1]} 57. Rh8
{[%clk 0:00:04.4]} 57... Kd6 {[%clk 0:00:07.2]} 58. Rf8 {[%clk 0:00:04.4]} 58...
Ke6 {[%clk 0:00:06.1]} 59. Rf6+ {[%clk 0:00:04.4]} 59... Kd7 {[%clk 0:00:06.8]}
60. Bd5 {[%clk 0:00:04.3]} 60... Bb1 {[%clk 0:00:06.5]} 61. Be6+ {[%clk
0:00:04.4]} 61... Kc7 {[%clk 0:00:06.7]} 62. Bd5 {[%clk 0:00:04.4]} 62... Kd7
{[%clk 0:00:06.5]} 63. Rb6 {[%clk 0:00:03.9]} 63... Nxd5 {[%clk 0:00:05.7]} 64.
Kxd5 {[%clk 0:00:03.5]} 64... e3 {[%clk 0:00:06.6]} 65. Rb7+ {[%clk 0:00:03.7]}
65... Ke8 {[%clk 0:00:06.4]} 66. Rxb1 {[%clk 0:00:04.3]} 1-0

[Event "Early-Titled-Tuesday-Blitz-September-26-2023"]
[Site "Chess.com"]
[Date "2023.09.26"]
[Round "11"]
[White "DuleMudule"]
[Black "platy3"]
[Result "1/2-1/2"]
[WhiteElo "2797"]
[BlackElo "2876"]
[TimeControl "180+1"]
[EndTime "10:07:09 PDT"]
[Termination "Game drawn by repetition"]

1. d4 {[%clk 0:03:00.9]} 1... Nf6 {[%clk 0:02:57.8]} 2. Bg5 {[%clk 0:03:00.9]}
2... d5 {[%clk 0:02:56.4]} 3. Bxf6 {[%clk 0:02:57.1]} 3... gxf6 {[%clk 0:02:56]}
4. e3 {[%clk 0:02:57.1]} 4... Bf5 {[%clk 0:02:55.9]} 5. Bd3 {[%clk 0:02:45.6]}
5... Bg6 {[%clk 0:02:55.5]} 6. h4 {[%clk 0:02:42.6]} 6... e6 {[%clk 0:02:52.1]}
7. h5 {[%clk 0:02:35.8]} 7... Bxd3 {[%clk 0:02:51.8]} 8. Qxd3 {[%clk 0:02:36.7]}
8... c5 {[%clk 0:02:51.5]} 9. dxc5 {[%clk 0:02:31.9]} 9... Bxc5 {[%clk 0:02:50]}
10. Nf3 {[%clk 0:02:28.8]} 10... Nc6 {[%clk 0:02:48.5]} 11. c3 {[%clk
0:02:27.2]} 11... f5 {[%clk 0:02:47]} 12. Nbd2 {[%clk 0:02:26.5]} 12... Qb6
{[%clk 0:02:44.8]} 13. b4 {[%clk 0:02:24.4]} 13... Be7 {[%clk 0:02:43.5]} 14. a4
{[%clk 0:02:17.2]} 14... Bf6 {[%clk 0:02:42.2]} 15. Rb1 {[%clk 0:02:15.4]} 15...
Rc8 {[%clk 0:02:39.8]} 16. a5 {[%clk 0:02:09.9]} 16... Qc7 {[%clk 0:02:38.8]}
17. c4 {[%clk 0:02:04.4]} 17... O-O {[%clk 0:02:11.1]} 18. O-O {[%clk
0:01:58.3]} 18... Rfd8 {[%clk 0:02:08.4]} 19. Rfc1 {[%clk 0:01:41.7]} 19... Qe7
{[%clk 0:01:52.7]} 20. c5 {[%clk 0:01:41.1]} 20... a6 {[%clk 0:01:48.6]} 21. b5
{[%clk 0:01:16.3]} 21... Nxa5 {[%clk 0:01:28.6]} 22. Qa3 {[%clk 0:00:58.6]}
22... Nc4 {[%clk 0:01:10.8]} 23. Nxc4 {[%clk 0:00:56.4]} 23... dxc4 {[%clk
0:01:11.7]} 24. Rxc4 {[%clk 0:00:55.1]} 24... axb5 {[%clk 0:01:11.9]} 25. Rcc1
{[%clk 0:00:27.3]} 25... b6 {[%clk 0:00:47.6]} 26. Qa6 {[%clk 0:00:27.2]} 26...
Rxc5 {[%clk 0:00:42.9]} 27. Qxb6 {[%clk 0:00:26.7]} 27... Rxc1+ {[%clk
0:00:35.8]} 28. Rxc1 {[%clk 0:00:27.6]} 28... b4 {[%clk 0:00:35.9]} 29. Rc7
{[%clk 0:00:23.7]} 29... Rd1+ {[%clk 0:00:26.1]} 30. Kh2 {[%clk 0:00:22.2]}
30... Qd6+ {[%clk 0:00:26.6]} 31. Qxd6 {[%clk 0:00:21.6]} 31... Rxd6 {[%clk
0:00:25.7]} 32. Rb7 {[%clk 0:00:16.8]} 32... Bc3 {[%clk 0:00:24.2]} 33. h6
{[%clk 0:00:16.5]} 33... Rd8 {[%clk 0:00:12.1]} 34. Kg3 {[%clk 0:00:15.2]} 34...
Kf8 {[%clk 0:00:11]} 35. Kf4 {[%clk 0:00:14.6]} 35... Bf6 {[%clk 0:00:07.1]} 36.
Rxb4 {[%clk 0:00:12.6]} 36... Rd7 {[%clk 0:00:07.5]} 37. Rc4 {[%clk 0:00:11]}
37... Ke7 {[%clk 0:00:07.5]} 38. g4 {[%clk 0:00:10.5]} 38... fxg4 {[%clk
0:00:06.8]} 39. Kxg4 {[%clk 0:00:11.4]} 39... Ra7 {[%clk 0:00:06]} 40. Nd2
{[%clk 0:00:11.1]} 40... Ra5 {[%clk 0:00:04.7]} 41. f4 {[%clk 0:00:09.8]} 41...
Kd7 {[%clk 0:00:02.4]} 42. Ne4 {[%clk 0:00:09.4]} 42... Be7 {[%clk 0:00:03.1]}
43. Kf3 {[%clk 0:00:07.5]} 43... Rh5 {[%clk 0:00:01.8]} 44. Rd4+ {[%clk
0:00:08]} 44... Ke8 {[%clk 0:00:02.2]} 45. Ra4 {[%clk 0:00:07.9]} 45... Rxh6
{[%clk 0:00:02.7]} 46. Ra8+ {[%clk 0:00:08.6]} 46... Kd7 {[%clk 0:00:03.4]} 47.
Ra7+ {[%clk 0:00:08.7]} 47... Ke8 {[%clk 0:00:03.9]} 48. Ra8+ {[%clk 0:00:08.3]}
48... Bd8 {[%clk 0:00:04.5]} 49. Ra7 {[%clk 0:00:08.9]} 49... Rh3+ {[%clk
0:00:04]} 50. Kf2 {[%clk 0:00:08.6]} 50... f5 {[%clk 0:00:03.8]} 51. Nd2 {[%clk
0:00:08]} 51... Bh4+ {[%clk 0:00:03.5]} 52. Ke2 {[%clk 0:00:08]} 52... Bf6
{[%clk 0:00:03.9]} 53. Nc4 {[%clk 0:00:07]} 53... h5 {[%clk 0:00:04.5]} 54. Nd6+
{[%clk 0:00:07.2]} 54... Kd8 {[%clk 0:00:05.3]} 55. Rf7 {[%clk 0:00:05.7]} 55...
Be7 {[%clk 0:00:05.7]} 56. Nb7+ {[%clk 0:00:05.9]} 56... Ke8 {[%clk 0:00:06.2]}
57. Rh7 {[%clk 0:00:06.1]} 57... h4 {[%clk 0:00:06.8]} 58. Na5 {[%clk
0:00:06.6]} 58... Rh1 {[%clk 0:00:07]} 59. Kf3 {[%clk 0:00:05.9]} 59... Bc5
{[%clk 0:00:05.4]} 60. Nc6 {[%clk 0:00:05.9]} 60... Rh3+ {[%clk 0:00:05.8]} 61.
Kg2 {[%clk 0:00:05.7]} 61... Rxe3 {[%clk 0:00:06.3]} 62. Rxh4 {[%clk 0:00:06]}
62... Kd7 {[%clk 0:00:06.9]} 63. Ne5+ {[%clk 0:00:06]} 63... Ke7 {[%clk
0:00:05.4]} 64. Rh7+ {[%clk 0:00:04.7]} 64... Ke8 {[%clk 0:00:06.1]} 65. Ng6
{[%clk 0:00:04.2]} 65... Re4 {[%clk 0:00:05.7]} 66. Kf3 {[%clk 0:00:04.1]} 66...
Bd4 {[%clk 0:00:06.2]} 67. Re7+ {[%clk 0:00:02.9]} 67... Kd8 {[%clk 0:00:06.8]}
68. Rf7 {[%clk 0:00:03.7]} 68... Ke8 {[%clk 0:00:06.5]} 69. Re7+ {[%clk
0:00:03.8]} 69... Kd8 {[%clk 0:00:07.1]} 70. Rf7 {[%clk 0:00:04.7]} 70... Bc3
{[%clk 0:00:07.4]} 71. Rh7 {[%clk 0:00:03.8]} 71... Bd4 {[%clk 0:00:04.8]} 72.
Rf7 {[%clk 0:00:04.3]} 1/2-1/2